lending/lending_fUSD_20260306
["ID","MTS","AMOUNT","RATE_DAILY","PERIOD"]
[407777965,1772794231632,-151.0,0.00014561,2]
[407777967,1772794231642,-151.0,0.00014561,2]
[407777969,1772794231651,-500.0,0.00014561,2]
[407777971,1772794231660,-151.0,0.00014561,2]
[407777973,1772794231669,-500.0,0.00014561,2]
[407777975,1772794231678,-500.0,0.00014561,2]
[407777977,1772794231687,-500.0,0.00014561,2]
[407777979,1772794231697,-500.0,0.00014561,2]
[407777981,1772794231706,-500.0,0.00014561,2]
[407777983,1772794231716,-500.0,0.00014561,2]
[407777985,1772794231725,-500.0,0.00014561,2]
[407777987,1772794231735,-500.0,0.00014561,2]
[407777989,1772794231745,-500.0,0.00014561,2]
[407777991,1772794231754,-500.0,0.00014561,2]
[407777993,1772794231764,-500.0,0.00014561,2]
[407777995,1772794231773,-500.0,0.00014561,2]
[407777997,1772794231783,-255.39371409,0.00014561,2]
[407777999,1772794231792,-500.0,0.00014561,2]
[407778001,1772794231802,-151.0,0.00014561,2]
[407778003,1772794231811,-500.0,0.00014561,2]
[407778005,1772794231820,-151.0,0.00014561,2]
[407778007,1772794231829,-500.0,0.00014561,2]
[407778009,1772794231840,-151.0,0.00014561,2]
[407778011,1772794231849,-500.0,0.00014561,2]
[407778013,1772794231858,-151.0,0.00014561,2]
[407778015,1772794231867,-500.0,0.00014561,2]
[407778017,1772794231877,-151.0,0.00014561,2]
[407778019,1772794231887,-151.0,0.00014561,2]
[407778021,1772794231896,-500.0,0.00014561,2]
[407778023,1772794231905,-151.0,0.00014561,2]
[407778025,1772794231914,-500.0,0.00014561,2]
[407778027,1772794231925,-151.0,0.00014561,2]
[407778029,1772794231937,-151.0,0.00014561,2]
[407778031,1772794231946,-500.0,0.00014561,2]
[407778033,1772794231956,-151.0,0.00014561,2]
[407778035,1772794231967,-151.0,0.00014561,2]
[407778037,1772794231976,-500.0,0.00014561,2]
[407778039,1772794231985,-151.0,0.00014561,2]
[407778041,1772794231995,-151.0,0.00014561,2]
[407778043,1772794232004,-500.0,0.00014561,2]
[407778045,1772794232013,-151.0,0.00014561,2]
[407778047,1772794232022,-151.0,0.00014561,2]
[407778049,1772794232031,-151.0,0.00014561,2]
[407778051,1772794232040,-151.0,0.00014561,2]
[407778052,1772794232050,-151.0,0.00014561,2]
[407778054,1772794232059,-151.0,0.00014561,2]
[407778056,1772794232069,-151.0,0.00014561,2]
[407778057,1772794232079,-151.0,0.00014561,2]
[407778058,1772794232089,-151.0,0.00014561,2]
[407778059,1772794232099,-151.0,0.00014561,2]
[407778060,1772794232109,-151.0,0.00014561,2]
[407778061,1772794232120,-151.0,0.00014561,2]
[407778062,1772794232130,-151.0,0.00014561,2]
[407778063,1772794232140,-151.0,0.00014561,2]
[407778064,1772794232484,-151.0,0.00014561,2]
[407778065,1772794232494,-151.0,0.00014561,2]
[407778066,1772794232504,-151.0,0.00014566,2]
[407778067,1772794232516,-1051.8256204,0.00014568,5]
[407778068,1772794232527,-425.07737944,0.00014568,2]
[407778069,1772794232536,-500.0,0.00014569,2]
[407778070,1772794232545,-500.0,0.00014569,2]
[407778071,1772794232554,-588.4343989,0.00014569,2]
[407778072,1772794232563,-500.0,0.00014569,2]
[407778073,1772794232573,-500.0,0.00014569,2]
[407778074,1772794232582,-500.0,0.00014569,2]
[407778075,1772794232591,-500.0,0.00014569,2]
[407778076,1772794232600,-500.0,0.00014569,2]
[407778077,1772794232610,-500.0,0.00014569,2]
[407778078,1772794232619,-500.0,0.00014569,2]
[407778079,1772794232628,-500.0,0.00014569,2]
[407778080,1772794232638,-500.0,0.00014569,2]
[407778081,1772794232647,-641.1882162,0.00014569,2]
[407778082,1772794232657,-500.0,0.00014569,2]
[407778083,1772794232665,-1055388.50101223,0.00014569,2]
[407778084,1772794232678,-252063.76009925,0.00014569,2]
[407778085,1772794232688,-363514.73280955,0.00014569,2]
[407778086,1772794232699,-1254.41808677,0.00014569,2]
[407778087,1772794232710,-332.68015698,0.00014569,2]
[407778092,1772794237328,-500.0,0.00014573,2]
[407778093,1772794237338,-500.07952757,0.00014573,2]
[407778094,1772794237347,-500.0,0.00014573,2]
[407778095,1772794237356,-500.0,0.00014573,2]
[407778096,1772794237365,-500.0,0.00014573,2]
[407778097,1772794237374,-500.0,0.00014573,2]
[407778098,1772794237383,-151.0,0.00014634,2]
[407778099,1772794237392,-1350.09,0.00014776,2]
[407778100,1772794237401,-250.0,0.00015,2]
[407778101,1772794237411,-6272.51109738,0.00015076,2]
[407778102,1772794237420,-5502.5586882,0.00015076,2]
[407778103,1772794237429,-500.0,0.00015121,2]
[407778104,1772794237438,-500.0,0.00015121,2]
[407778105,1772794237447,-1000.0,0.00015121,2]
[407778106,1772794237456,-1000.0,0.00015121,2]
[407778107,1772794237465,-1350.09,0.00015127,2]
[407778108,1772794237475,-500.0,0.0001535,2]
[407778109,1772794237484,-276.14414687,0.00015374,2]
[407778110,1772794237493,-1253.22,0.00015471,2]
[407778111,1772794237502,-1350.09,0.00015479,2]
[407778112,1772794237511,-194.11,0.000155,2]
[407778113,1772794237520,-170.39,0.00015506,2]
[407778114,1772794237529,-255.0,0.00015522,2]
[407778115,1772794237538,-385.30991447,0.00015558,2]
[407778116,1772794237548,-500.0,0.00015559,2]
[407778117,1772794237557,-500.0,0.00015559,2]
[407778118,1772794237566,-283.81037588,0.00015559,2]
[407778119,1772794237574,-500.0,0.00015559,2]
[407778120,1772794237583,-500.0,0.00015559,2]
[407778121,1772794237592,-500.0,0.00015559,2]
[407778122,1772794237601,-500.0,0.00015559,2]
[407778123,1772794237610,-500.0,0.00015559,2]
[407778124,1772794237619,-500.0,0.00015559,2]
[407778125,1772794237628,-500.0,0.00015559,2]
[407778126,1772794237637,-500.0,0.00015559,2]
[407778127,1772794237646,-500.0,0.00015559,2]
[407778128,1772794237655,-500.0,0.00015559,2]
[407778129,1772794237664,-230.98606825,0.00015559,2]
[407778130,1772794237672,-515.53321207,0.00015559,2]
[407778131,1772794237681,-151.31,0.00015589,2]
[407778132,1772794237690,-1500.0,0.00015668,2]
[407778133,1772794237699,-787.80347915,0.00015668,2]
[407778134,1772794237708,-6272.51109738,0.00015679,2]
[407778135,1772794237717,-5502.5586882,0.00015679,2]
[407778136,1772794237726,-1680.0,0.00015839,2]
[407778137,1772794237735,-3439.89,0.0001592,2]
[407778138,1772794237744,-175.63,0.0001599,2]
[407778139,1772794237753,-200.0,0.00015995,2]
[407778140,1772794237761,-189.44875125,0.00016057,2]
[407778141,1772794237770,-2000.0,0.00016216,2]
[407778142,1772794237779,-276.14414687,0.00016279,2]
[407778143,1772794237787,-6272.51109738,0.00016282,2]
[407778144,1772794237796,-5502.5586882,0.00016282,2]
[407778145,1772794237805,-2000.0,0.000164,2]
[407778146,1772794237814,-228.32,0.00016438,2]
[407778147,1772794237823,-170.39,0.00016475,2]
[407778148,1772794237831,-2000.0,0.000165,2]
[407778149,1772794237840,-2000.0,0.000166,2]
[407778150,1772794237848,-2000.0,0.000166,2]
[407778151,1772794237857,-385.30991447,0.00016644,2]
[407778152,1772794237866,-2000.0,0.000167,2]
[407778153,1772794237874,-2000.0,0.000167,2]
[407778154,1772794237883,-166.34,0.00016712,2]
[407778155,1772794237892,-433.0,0.00016732,2]
[407778156,1772794237902,-2500.0,0.00016764,2]
[407778157,1772794237911,-152.52,0.0001679,2]
[407778158,1772794237920,-2000.0,0.000168,2]
[407778160,1772794237930,-2000.0,0.000168,2]
[407778162,1772794237942,-6272.51109738,0.00016885,2]
[407778163,1772794237951,-5502.5586882,0.00016885,2]
[407778165,1772794237960,-2000.0,0.000169,2]
[407778166,1772794237970,-2000.0,0.000169,2]
[407778168,1772794237980,-150.99,0.00016922,2]
[407778169,1772794237989,-7602.92,0.00016922,2]
[407778171,1772794237999,-1500.0,0.00017,2]
[407778172,1772794238011,-300.0,0.00017,2]
[407778174,1772794238021,-160.0,0.00017,2]
[407778175,1772794238031,-151.31,0.00017006,2]
[407778176,1772794238041,-152.52,0.0001706,2]
[407778177,1772794238051,-276.14414687,0.00017185,2]
[407778178,1772794238061,-286.93096121,0.00017187,2]
[407778179,1772794238070,-1000.0,0.00017199,2]
[407778180,1772794238080,-3388.83143379,0.00017277,2]
[407778181,1772794238090,-252.67365585,0.00017277,2]
[407778182,1772794238100,-174.61919141,0.00017277,2]
[407778183,1772794238109,-151.0,0.00017277,2]
[407778184,1772794238119,-1000.0,0.00017277,2]
[407778185,1772794238128,-151.0,0.00017277,2]
[407778186,1772794238137,-1000.0,0.00017277,2]
[407778187,1772794238147,-1000.0,0.00017277,2]
[407778188,1772794238157,-721.12765535,0.00017277,2]
[407778189,1772794238167,-151.0,0.00017277,2]
[407778190,1772794238177,-1000.0,0.00017277,2]
[407778191,1772794238187,-151.0,0.00017277,2]
[407778192,1772794238197,-250.0,0.00017277,2]
[407778193,1772794238206,-1000.0,0.00017277,2]
[407778194,1772794238216,-151.0,0.00017277,2]
[407778195,1772794238225,-250.0,0.00017277,2]
[407778196,1772794238235,-151.0,0.00017277,2]
[407778197,1772794238245,-250.0,0.00017277,2]
[407778198,1772794238254,-1000.0,0.00017277,2]
[407778199,1772794238264,-151.0,0.00017277,2]
[407778200,1772794238274,-250.0,0.00017277,2]
[407778201,1772794238283,-1000.0,0.00017277,2]
[407778202,1772794238293,-151.0,0.00017277,2]
[407778203,1772794238302,-250.0,0.00017277,2]
[407778204,1772794238312,-1000.0,0.00017277,2]
[407778205,1772794238321,-250.0,0.00017277,2]
[407778206,1772794238331,-1000.0,0.00017277,2]
[407778207,1772794238340,-250.0,0.00017277,2]
[407778208,1772794238349,-1000.0,0.00017277,2]
[407778209,1772794238358,-1000.0,0.00017277,2]
[407778210,1772794238367,-500.0,0.00017277,2]
[407778211,1772794238378,-1000.0,0.00017277,2]
[407778212,1772794238387,-500.0,0.00017277,2]
[407778213,1772794238397,-500.0,0.00017277,2]
[407778214,1772794238407,-500.0,0.00017277,2]
[407778215,1772794238417,-500.0,0.00017277,2]
[407778216,1772794238426,-250.0,0.00017277,2]
[407778217,1772794238436,-743.50770149,0.00017277,2]
[407778218,1772794238446,-500.0,0.00017277,2]
[407778219,1772794238455,-250.0,0.00017277,2]
[407778220,1772794238465,-500.0,0.00017277,2]
[407778221,1772794238475,-250.0,0.00017277,2]
[407778222,1772794238485,-500.0,0.00017277,2]
[407778223,1772794238495,-250.0,0.00017277,2]
[407778224,1772794238505,-500.0,0.00017277,2]
[407778225,1772794238514,-250.0,0.00017277,2]
[407778226,1772794238524,-271.67882507,0.00017277,2]
[407778227,1772794238533,-500.0,0.00017277,2]
[407778228,1772794238543,-250.0,0.00017277,2]
[407778229,1772794238553,-500.0,0.00017277,2]
[407778230,1772794238563,-250.0,0.00017277,2]
[407778231,1772794238572,-250.0,0.00017277,2]
[407778232,1772794238582,-250.0,0.00017277,2]
[407778233,1772794238592,-250.0,0.00017277,2]
[407778234,1772794238602,-250.0,0.00017277,2]
[407778235,1772794238611,-250.0,0.00017277,2]
[407778236,1772794238621,-300.0,0.00017277,2]
[407778237,1772794238631,-300.0,0.00017277,2]
[407778238,1772794238641,-305.95163096,0.00017277,2]
[407778239,1772794238651,-578.20924308,0.00017277,2]
[407778240,1772794238972,-693.3919763,0.00017277,2]
[407778241,1772794238982,-500.0,0.00017277,2]
[407778242,1772794238993,-500.0,0.00017277,2]
[407778243,1772794239003,-500.0,0.00017277,2]
[407778244,1772794239013,-500.0,0.00017277,2]
[407778245,1772794239022,-500.0,0.00017277,2]
[407778246,1772794239033,-508.72212285,0.00017277,2]
[407778247,1772794239042,-500.0,0.00017277,2]
[407778248,1772794239052,-500.0,0.00017277,2]
[407778249,1772794239062,-500.0,0.00017277,2]
[407778250,1772794239071,-500.0,0.00017277,2]
[407778251,1772794239081,-500.0,0.00017277,2]
[407778252,1772794239090,-500.0,0.00017277,2]
[407778253,1772794239100,-500.0,0.00017277,2]
[407778254,1772794239110,-500.0,0.00017277,2]
[407778255,1772794239121,-500.0,0.00017277,2]
[407778256,1772794239130,-500.0,0.00017277,2]
[407778257,1772794239140,-500.0,0.00017277,2]
[407778258,1772794239150,-269.917619,0.00017277,2]
[407778259,1772794239160,-151.0,0.00017277,2]
[407778260,1772794239169,-503.01170887,0.00017277,2]
[407778261,1772794239178,-3000.0,0.00017312,2]
[407778262,1772794239188,-152.52,0.0001733,2]
[407778263,1772794239197,-719.04747942,0.00017332,2]
[407778264,1772794239206,-151.0,0.00017332,2]
[407778265,1772794239216,-876.76,0.00017351,2]
[407778266,1772794239225,-1000.0,0.00017376,2]
[407778267,1772794239235,-745.65223616,0.00017387,2]
[407778268,1772794239244,-151.0,0.00017387,2]
[407778269,1772794239254,-418.88121615,0.00017388,2]
[407778270,1772794239264,-2351.0,0.00017423,2]
[407778271,1772794239274,-773.2413689,0.00017442,2]
[407778272,1772794239283,-151.0,0.00017442,2]
[407778273,1772794239293,-170.39,0.00017444,2]
[407778274,1772794239303,-6272.51109738,0.00017488,2]
[407778275,1772794239313,-5502.5586882,0.00017488,2]
[407778276,1772794239322,-801.85129955,0.00017497,2]
[407778277,1772794239332,-151.0,0.00017497,2]
[407778278,1772794239342,-500.0,0.00017517,2]
[407778279,1772794239351,-831.51979763,0.00017552,2]
[407778280,1772794239361,-151.0,0.00017552,2]
[407778281,1772794239370,-780.83,0.00017569,2]
[407778282,1772794239380,-152.52,0.000176,2]
[407778283,1772794239390,-862.28603014,0.00017607,2]
[407778284,1772794239399,-876.76,0.00017625,2]
[407778285,1772794239409,-1000.0,0.0001765,2]
[407778286,1772794239418,-894.19061326,0.00017662,2]
[407778287,1772794239427,-927.27566595,0.00017717,2]
[407778288,1772794239438,-3531.11,0.00017728,2]
[407778289,1772794239447,-385.30991447,0.00017729,2]
[407778290,1772794239457,-961.58486559,0.00017772,2]
[407778291,1772794239466,-500.0,0.00017775,2]
[407778294,1772794239476,-652.07601716,0.00017797,2]
[407778297,1772794239486,-1186.5676651,0.00017797,2]
[407778298,1772794239495,-845.16272056,0.000178,2]
[407778299,1772794239505,-1987.8599655,0.00017823,2]
[407778300,1772794239514,-181.08010149,0.00017825,2]
[407778301,1772794239523,-1000.0,0.00017825,2]
[407778302,1772794239533,-279.9045709,0.00017825,2]
[407778303,1772794239542,-997.16350561,0.00017827,2]
[407778304,1772794239552,-780.83,0.00017843,2]
[407778305,1772794239561,-3000.0,0.0001786,2]
[407778306,1772794239571,-152.52,0.0001787,2]
[407778307,1772794239580,-500.0,0.0001787,2]
[407778308,1772794239590,-150.0,0.0001787,2]
[407778309,1772794239600,-500.0,0.00017873,2]
[407778310,1772794239609,-500.0,0.00017873,2]
[407778311,1772794239619,-494.64624274,0.00017873,2]
[407778312,1772794239629,-500.0,0.00017873,2]
[407778313,1772794239638,-500.0,0.00017873,2]
[407778314,1772794239647,-182.43846544,0.00017873,2]
[407778315,1772794239657,-446.12402339,0.00017873,2]
[407778316,1772794239667,-500.0,0.00017873,2]
[407778317,1772794239676,-500.0,0.00017873,2]
[407778318,1772794239686,-500.0,0.00017873,2]
[407778319,1772794239696,-500.0,0.00017873,2]
[407778320,1772794239705,-301.78790722,0.00017873,2]
[407778321,1772794239715,-500.0,0.00017873,2]
[407778322,1772794239724,-500.0,0.00017873,2]
[407778323,1772794239734,-500.0,0.00017873,2]
[407778324,1772794239743,-500.0,0.00017873,2]
[407778325,1772794239753,-500.0,0.00017873,2]
[407778326,1772794239762,-500.0,0.00017873,2]
[407778327,1772794239772,-500.0,0.00017873,2]
[407778328,1772794239782,-500.0,0.00017873,2]
[407778329,1772794239792,-500.0,0.00017873,2]
[407778330,1772794239802,-500.0,0.00017873,2]
[407778331,1772794239811,-500.0,0.00017873,2]
[407778332,1772794239821,-500.0,0.00017873,2]
[407778333,1772794239830,-151.0,0.00017894,2]
[407778334,1772794239840,-350485.1530929,0.00017897,2]
[407778335,1772794239850,-13113.3715899,0.00017897,2]
[407778336,1772794239859,-876.76,0.00017899,2]
[407778337,1772794239869,-151.04766822,0.00017909,5]
[407778338,1772794239883,-1000.0,0.00017924,2]
[407778339,1772794239892,-158.0,0.00017932,3]
[407778340,1772794239901,-160.0,0.00017932,3]
[407778341,1772794239911,-154.0,0.00017932,3]
[407778342,1772794239921,-200.35,0.00018,4]
[407778343,1772794239931,-182.80013699,0.00018,2]
[407778344,1772794239945,-200.0,0.00018,2]
[407778345,1772794239955,-509.42125143,0.00018032,2]
[407778346,1772794239965,-391.0,0.00018042,2]
[407778347,1772794239975,-276.14414687,0.0001809,2]
[407778348,1772794239984,-6272.51109738,0.00018091,2]
[407778349,1772794239994,-5502.5586882,0.00018091,2]
[407778350,1772794240004,-780.83,0.00018117,2]
[407778351,1772794240014,-152.52,0.0001814,2]
[407778352,1772794240023,-500.0,0.00018144,2]
[407778353,1772794240033,-214.75,0.00018173,2]
[407778354,1772794240042,-1000.0,0.00018198,2]
[407778355,1772794240052,-138054.8797,0.00018324,2]
[407778356,1772794240061,-500.0,0.00018373,2]
[407778357,1772794240071,-187.78006525,0.00018373,2]
[407778358,1772794240080,-1000.0,0.00018373,2]
[407778359,1772794240090,-892.71,0.00018391,2]
[407778360,1772794240100,-847.0,0.000184,2]
[407778361,1772794240109,-160.0,0.000184,2]
[407778362,1772794240119,-514.0,0.000184,5]
[407778363,1772794240128,-152.52,0.0001841,2]
[407778364,1772794240137,-209.48,0.00018413,2]
[407778365,1772794240147,-175.63,0.00018416,2]
[407778366,1772794240157,-450.0,0.00018418,2]
[407778368,1772794240166,-1000.0,0.00018421,2]
[407778369,1772794240176,-1000.0,0.00018421,2]
[407778370,1772794240185,-1134.58548457,0.00018421,2]
[407778371,1772794240195,-1000.0,0.00018421,2]
[407778372,1772794240204,-1000.0,0.00018421,2]
[407778373,1772794240215,-205.88057451,0.00018421,2]
[407778374,1772794240224,-235.21838039,0.00018421,2]
[407778375,1772794240234,-349.85488597,0.00018421,2]
[407778376,1772794240246,-1000.0,0.00018421,2]
[407778377,1772794240264,-1000.0,0.00018421,2]
[407778378,1772794240273,-1000.0,0.00018421,2]
[407778379,1772794240283,-1000.0,0.00018421,2]
[407778380,1772794240293,-1000.0,0.00018421,2]
[407778381,1772794240303,-1000.0,0.00018421,2]
[407778382,1772794240312,-1000.0,0.00018421,2]
[407778383,1772794240322,-530.88059829,0.00018421,2]
[407778384,1772794240331,-556.1229892,0.00018421,2]
[407778385,1772794240341,-449.5306254,0.00018421,2]
[407778386,1772794240351,-1000.0,0.00018421,2]
[407778387,1772794240360,-29547.53,0.0001843,2]
[407778388,1772794240370,-9893.98,0.00018437,7]
[407778389,1772794240380,-989.4,0.00018437,7]
[407778390,1772794240389,-172.74325605,0.0001844,7]
[407778391,1772794240400,-1000.0,0.00018472,2]
[407778392,1772794240410,-1000.0,0.00018549,2]
[407778393,1772794240420,-2000.0,0.000186,2]
[407778394,1772794240430,-500.0,0.00018617,2]
[407778395,1772794240440,-150.0,0.00018617,2]
[407778396,1772794240450,-150.0,0.00018617,2]
[407778397,1772794240464,-500.0,0.00018617,2]
[407778398,1772794240473,-500.0,0.00018617,2]
[407778399,1772794240483,-150.0,0.00018617,2]
[407778400,1772794240493,-500.0,0.00018617,2]
[407778401,1772794240502,-500.0,0.00018617,2]
[407778402,1772794240512,-150.0,0.00018617,2]
[407778403,1772794240522,-150.0,0.00018617,2]
[407778404,1772794240531,-500.0,0.00018617,2]
[407778405,1772794240540,-500.0,0.00018617,2]
[407778406,1772794240550,-646.0,0.00018617,2]
[407778407,1772794240560,-568.0,0.00018617,2]
[407778408,1772794240570,-500.0,0.00018617,2]
[407778409,1772794240579,-817.0,0.00018617,2]
[407778410,1772794240589,-500.0,0.00018617,2]
[407778411,1772794240599,-2526.0,0.00018617,2]
[407778412,1772794240608,-1130.0,0.00018617,2]
[407778413,1772794240618,-500.0,0.00018617,2]
[407778414,1772794240628,-500.0,0.00018617,2]
[407778415,1772794240638,-946.0,0.00018617,2]
[407778416,1772794240648,-500.0,0.00018617,2]
[407778417,1772794240658,-500.0,0.00018617,2]
[407778418,1772794240668,-1217.0,0.00018617,2]
[407778419,1772794240678,-500.0,0.00018617,2]
[407778420,1772794240688,-150.0,0.00018617,2]
[407778421,1772794240697,-500.0,0.00018617,2]
[407778422,1772794240707,-150.0,0.00018617,2]
[407778423,1772794240717,-150.0,0.00018617,2]
[407778424,1772794240726,-772.0,0.00018617,2]
[407778425,1772794240735,-1296.0,0.00018617,2]
[407778426,1772794240745,-150.0,0.00018617,2]
[407778427,1772794240755,-153.327391,0.00018617,2]
[407778428,1772794240764,-500.0,0.00018617,2]
[407778429,1772794240774,-500.0,0.00018617,2]
[407778430,1772794240783,-154.84165801,0.00018617,2]
[407778431,1772794240793,-500.0,0.00018617,2]
[407778432,1772794240803,-500.0,0.00018617,2]
[407778433,1772794240813,-500.0,0.00018617,2]
[407778434,1772794240827,-150.0,0.00018617,2]
[407778435,1772794240837,-500.0,0.00018617,2]
[407778436,1772794240847,-500.0,0.00018617,2]
[407778437,1772794240857,-418.88121613,0.00018644,2]
[407778438,1772794240868,-500.0,0.00018654,2]
[407778439,1772794240879,-152.52,0.0001868,2]
[407778440,1772794240890,-209.49,0.00018687,2]
[407778441,1772794240901,-6272.51109738,0.00018694,2]
[407778442,1772794240912,-5502.5586882,0.00018694,2]
[407778443,1772794240921,-2803.0,0.0001872,2]
[407778444,1772794240935,-1000.0,0.00018746,2]
[407778445,1772794240945,-153.25316425,0.00018761,2]
[407778446,1772794240954,-2000.0,0.000188,2]
[407778447,1772794240964,-385.30991447,0.00018815,2]
[407778448,1772794240976,-652.07601716,0.00018849,2]
[407778449,1772794240988,-1186.56766508,0.00018849,2]
[407778450,1772794240998,-175.61,0.00018859,2]
[407778451,1772794241011,-2238.0,0.00018877,2]
[407778452,1772794241024,-503.45437192,0.00018891,2]
[407778453,1772794241034,-150.0,0.00018891,2]
[407778454,1772794241045,-228.20561973,0.00018891,2]
[407778455,1772794241055,-505.11162993,0.00018891,2]
[407778456,1772794241064,-500.0,0.00018891,2]
[407778457,1772794241074,-206.68713067,0.00018891,2]
[407778458,1772794241084,-500.0,0.00018891,2]
[407778459,1772794241093,-500.0,0.00018891,2]
[407778460,1772794241103,-150.0,0.00018891,2]
[407778461,1772794241113,-500.0,0.00018891,2]
[407778462,1772794241123,-500.0,0.00018891,2]
[407778463,1772794241132,-646.0,0.00018891,2]
[407778464,1772794241142,-568.0,0.00018891,2]
[407778465,1772794241152,-500.0,0.00018891,2]
[407778466,1772794241162,-817.0,0.00018891,2]
[407778467,1772794241171,-500.0,0.00018891,2]
[407778468,1772794241182,-2526.0,0.00018891,2]
[407778469,1772794241193,-1130.0,0.00018891,2]
[407778470,1772794241205,-500.0,0.00018891,2]
[407778471,1772794241217,-500.0,0.00018891,2]
[407778472,1772794241228,-946.0,0.00018891,2]
[407778473,1772794241238,-507.60945149,0.00018891,2]
[407778474,1772794241247,-500.0,0.00018891,2]
[407778475,1772794241257,-1217.0,0.00018891,2]
[407778476,1772794241267,-500.0,0.00018891,2]
[407778477,1772794241276,-150.0,0.00018891,2]
[407778478,1772794241287,-500.0,0.00018891,2]
[407778479,1772794241298,-150.0,0.00018891,2]
[407778480,1772794241308,-772.0,0.00018891,2]
[407778481,1772794241318,-1296.0,0.00018891,2]
[407778482,1772794241328,-500.0,0.00018891,2]
[407778483,1772794241338,-500.0,0.00018891,2]
[407778484,1772794241347,-501.14447522,0.00018891,2]
[407778485,1772794241357,-500.0,0.00018891,2]
[407778486,1772794241367,-500.0,0.00018891,2]
[407778487,1772794241377,-150.0,0.00018891,2]
[407778488,1772794241387,-500.0,0.00018891,2]
[407778489,1772794241398,-500.0,0.00018891,2]
[407778490,1772794241408,-1000.0,0.00018921,2]
[407778491,1772794241418,-194.72792766,0.00018921,2]
[407778492,1772794241427,-1000.0,0.00018921,2]
[407778493,1772794241437,-152.52,0.0001895,2]
[407778494,1772794241447,-1500.0,0.00018968,2]
[407778495,1772794241458,-1500.0,0.00018968,2]
[407778496,1772794241467,-1500.0,0.00018968,2]
[407778497,1772794241477,-1500.0,0.00018968,2]
[407778498,1772794241487,-1500.0,0.00018968,2]
[407778499,1772794241496,-1500.0,0.00018968,2]
[407778500,1772794241506,-1500.0,0.00018968,2]
[407778501,1772794241518,-1500.0,0.00018968,2]
[407778502,1772794241528,-1500.0,0.00018968,2]
[407778503,1772794241538,-1500.0,0.00018968,2]
[407778504,1772794241548,-1557.2086331,0.00018968,2]
[407778505,1772794241559,-260.56842108,0.00018982,2]
[407778506,1772794241568,-7420.49,0.0001899,7]
[407778507,1772794241579,-742.05,0.0001899,7]
[407778508,1772794241589,-276.14414687,0.00018995,2]
[407778509,1772794241599,-15094.3635736,0.00019,2]
[407778510,1772794241610,-5000.0,0.00019,2]
[407778511,1772794241620,-184.41882125,0.00019,2]
[407778512,1772794241630,-151.0,0.00019,2]
[407778513,1772794241640,-151.0,0.00019,2]
[407778514,1772794241651,-350.0,0.00019,2]
[407778515,1772794241662,-1000.0,0.0001902,2]
[407778516,1772794241671,-1600.0,0.00019034,2]
[407778517,1772794241682,-847.0,0.0001904,2]
[407778518,1772794241692,-847.0,0.0001904,2]
[407778519,1772794241701,-172.74325605,0.00019058,2]
[407778520,1772794241711,-160.0,0.00019058,2]
[407778521,1772794241721,-5000.0,0.000191,2]
[407778522,1772794241731,-150.0,0.00019165,2]
[407778523,1772794241740,-500.0,0.00019165,2]
[407778524,1772794241750,-500.0,0.00019165,2]